bitfinex/quotes_SOLUSD_20240612
["timestamp","ask_amount","ask_price","bid_price","bid_amount"]
[1718165495425,8.49,150.46,150.45,2.7992]
[1718165496845,0.8394301,150.48,150.45,2.7992]
[1718165497036,8.49,150.46,150.45,2.7992]
[1718165497237,0.8394301,150.48,150.46,2.629]
[1718165497439,9.3294301,150.48,150.47,0.34]
[1718165497760,9.3294301,150.48,150.47,2.7989]
[1718165498263,0.8394301,150.48,150.47,0.34]
[1718165498461,9.3294301,150.48,150.47,0.34]
[1718165499168,9.3294301,150.48,150.47,2.67848]
[1718165499452,9.3294301,150.48,150.47,2.6289]
[1718165500339,0.8394301,150.48,150.47,2.6289]
[1718165500638,9.3294301,150.48,150.47,2.6289]
[1718165501270,0.8394301,150.48,150.47,2.7989]
[1718165501430,9.3294301,150.48,150.47,2.9689]
[1718165501631,9.3294301,150.48,150.47,3.1389]
[1718165503365,0.8394301,150.48,150.47,3.1389]
[1718165503663,9.3294301,150.48,150.47,3.1389]
[1718165505068,0.8394301,150.48,150.47,9.4671]
[1718165505268,0.8394301,150.48,150.47,3.1389]
[1718165510475,0.8394301,150.48,150.47,9.6835]
[1718165511867,0.8394301,150.48,150.47,31.814]
[1718165512182,0.8394301,150.48,150.47,24.4372]
[1718165513080,0.8394301,150.48,150.47,31.814]
[1718165513442,0.8394301,150.48,150.47,71.724]
[1718165513645,0.8394301,150.48,150.47,171.724]
[1718165513847,0.8394301,150.48,150.47,191.744]
[1718165514047,0.6594301,150.48,150.47,191.744]
[1718165514248,0.1194301,150.48,150.47,215.3071]
[1718165514679,0.1194301,150.48,150.47,235.3071]
[1718165515549,15.6231,150.59,150.54,2.4577]
[1718165515964,8.49,150.55,150.54,2.4577]
[1718165516280,15.6231,150.59,150.53,4.9158]
[1718165516583,15.6231,150.59,150.55,2.4575]
[1718165516782,8.49,150.56,150.54,0.17]
[1718165517086,8.49,150.55,150.54,0.17]
[1718165517251,8.49,150.55,150.54,2.4578]
[1718165517586,8.49,150.55,150.54,2.6278]
[1718165517762,6.93550673,150.6,150.55,2.4575]
[1718165517965,8.49,150.56,150.54,3.13019195]
[1718165518277,6.93550673,150.6,150.55,0.17]
[1718165518585,6.93550673,150.6,150.55,0.67245857]
[1718165518758,8.49,150.56,150.55,2.7976]
[1718165518952,8.49,150.56,150.55,3.1376]
[1718165519154,6.93550673,150.6,150.59,2.627]
[1718165519367,15.42550673,150.6,150.59,3.137]
[1718165520358,6.93550673,150.6,150.59,9.519]
[1718165520693,0.36075111,150.61,150.6,14.7409]
[1718165520854,0.36075111,150.61,150.6,31.6302]
[1718165521054,0.8394301,150.63,150.62,21.291]
[1718165521271,0.8394301,150.63,150.62,31.627]
[1718165521506,0.8394301,150.63,150.62,41.43146985]
[1718165521690,0.3394301,150.63,150.62,41.43146985]
[1718165521988,0.3394301,150.63,150.62,47.621]
[1718165522482,0.3394301,150.63,150.62,30.4255]
[1718165522661,0.3394301,150.63,150.62,37.795]
[1718165522865,0.3394301,150.63,150.62,30.4255]
[1718165523176,0.3394301,150.63,150.62,47.621]
[1718165525074,0.3394301,150.63,150.62,37.795]
[1718165525258,8.8294301,150.63,150.62,8.8385]
[1718165525678,8.8294301,150.63,150.62,2.4565]
[1718165525853,0.3394301,150.63,150.62,130.9804]
[1718165526565,0.3394301,150.63,150.62,131.4904]
[1718165526778,0.3394301,150.63,150.62,131.6604]
[1718165527281,0.3394301,150.63,150.62,114.4649]
[1718165527457,0.3394301,150.63,150.62,121.8344]
[1718165528079,0.3394301,150.63,150.62,131.6604]
[1718165529075,0.3394301,150.63,150.62,171.5704]
[1718165529279,0.3394301,150.63,150.62,154.3749]
[1718165529966,0.3394301,150.63,150.62,2.4565]
[1718165530167,8.8294301,150.63,150.61,2.4566]
[1718165530371,8.49,150.62,150.6,2.4568]
[1718165530580,8.49,150.61,150.6,2.4568]
[1718165530797,8.49,150.61,150.59,2.4569]
[1718165530975,8.49,150.61,150.6,2.4568]
[1718165531170,8.49,150.61,150.59,2.4569]
[1718165531491,8.49,150.6,150.59,2.4569]
[1718165531670,8.49,150.6,150.59,8.5959]
[1718165531875,0.3394301,150.63,150.62,2.4565]
[1718165532087,8.8294301,150.63,150.62,2.4565]
[1718165532463,8.8294301,150.63,150.62,2.7965]
[1718165532666,0.3394301,150.63,150.62,3.1365]
[1718165533117,8.8294301,150.63,150.62,3.1365]
[1718165533779,0.3394301,150.63,150.62,3.1365]
[1718165533977,8.8294301,150.63,150.62,3.1365]
[1718165535211,8.8294301,150.63,150.62,0.68]
[1718165536078,8.8294301,150.63,150.62,0.34]
[1718165536280,8.8294301,150.63,150.6,2.4568]
[1718165536281,8.8294301,150.63,150.61,0.34]
[1718165536476,8.49,150.62,150.61,2.9666]
[1718165536708,8.49,150.62,150.61,3.1366]
[1718165538301,0.3394301,150.63,150.62,2.4565]
[1718165538507,8.8294301,150.63,150.62,2.6265]
[1718165539020,8.8294301,150.63,150.62,2.7965]
[1718165539172,8.8294301,150.63,150.62,2.9665]
[1718165539377,8.8294301,150.63,150.62,3.1365]
[1718165539588,0.3394301,150.63,150.62,3.1365]
[1718165540607,8.8294301,150.63,150.62,3.1365]
[1718165541188,31.1655301,150.63,150.54,100.0]
[1718165541498,16.8405301,150.63,150.56,109.8298]
[1718165541680,8.49,150.61,150.6,2.4567]
[1718165541881,16.8405301,150.63,150.6,2.4567]
[1718165542094,8.49,150.61,150.6,2.4567]
[1718165542410,0.3394301,150.63,150.61,2.4566]
[1718165542599,0.3394301,150.63,150.62,0.17]
[1718165542781,8.8294301,150.63,150.62,0.17]
[1718165543600,8.8294301,150.63,150.62,2.7965]
[1718165543785,8.8294301,150.63,150.62,3.1365]
[1718165543983,0.3394301,150.63,150.62,3.1365]
[1718165545321,8.8294301,150.63,150.62,0.68]
[1718165546186,8.8294301,150.63,150.59,2.4569]
[1718165546382,8.49,150.6,150.56,7.3722]
[1718165546607,8.49,150.58,150.57,4.9146]
[1718165546815,8.49,150.58,150.57,7.3719]
[1718165547189,8.49,150.58,150.57,2.4573]
[1718165548293,8.49,150.59,150.56,4.9149]
[1718165548491,8.49,150.59,150.58,2.4571]
[1718165548794,8.49,150.59,150.58,0.34]
[1718165548999,31.5844301,150.63,150.58,0.17]
[1718165549611,25.7494301,150.63,150.6,2.4567]
[1718165549815,25.7494301,150.63,150.59,0.17]
[1718165550106,5.835,150.62,150.56,2.4574]
[1718165550305,22.2698,150.61,150.53,12.2895]
[1718165550506,22.2698,150.61,150.58,2.457]
[1718165550709,22.2698,150.61,150.56,4.9149]
[1718165550896,22.2698,150.61,150.58,2.457]
[1718165551089,5.835,150.6,150.59,2.4569]
[1718165551408,5.835,150.6,150.54,2.4577]
[1718165551603,25.41,150.59,150.54,2.4577]
[1718165551907,25.41,150.59,150.55,2.4576]
[1718165553398,25.41,150.59,150.52,9.8325]
[1718165553596,25.41,150.59,150.56,2.4573]
[1718165553902,25.41,150.59,150.57,2.4572]
[1718165554109,16.4348,150.61,150.58,2.4571]
[1718165554290,16.4348,150.61,150.6,2.4568]
[1718165554483,0.3394301,150.63,150.6,2.4568]
[1718165554690,0.3394301,150.63,150.59,2.6269]
[1718165554894,0.3394301,150.63,150.6,2.4568]
[1718165555517,0.3394301,150.63,150.59,0.17]
[1718165555710,0.3394301,150.63,150.58,0.34]
[1718165556099,5.835,150.62,150.52,16.5441]
[1718165556616,5.835,150.62,150.56,2.4573]
[1718165557288,5.835,150.62,150.57,2.4572]
[1718165557602,5.835,150.62,150.58,2.4571]
[1718165558221,5.835,150.62,150.56,0.17]
[1718165558424,5.835,150.62,150.57,2.4572]
[1718165559423,0.3394301,150.63,150.58,2.4571]
[1718165559718,6.1744301,150.63,150.58,2.4571]
[1718165559926,8.6307301,150.63,150.56,2.4574]
[1718165560129,8.6307301,150.63,150.57,0.17]
[1718165560299,6.1744301,150.63,150.57,2.6272]
[1718165561122,6.1744301,150.63,150.52,9.8321]
[1718165561123,5.835,150.61,150.52,9.8321]
[1718165561320,31.245,150.6,150.5,19.63664321]
[1718165561528,31.245,150.6,150.49,16.08184321]
[1718165561822,2.457,150.59,150.52,2.458]
[1718165562196,5.835,150.6,150.49,13.6543]
[1718165562401,25.41,150.58,150.5,4.9167]
[1718165562620,25.41,150.58,150.55,2.4576]
[1718165563010,25.41,150.58,150.51,4.9164]
[1718165563308,25.41,150.58,150.53,2.4578]
[1718165564213,25.41,150.58,150.54,2.4577]
[1718165565200,25.41,150.58,150.55,2.4575]
[1718165565528,5.835,150.6,150.52,0.17]
[1718165565529,16.2369,150.62,150.57,2.4573]
[1718165565731,5.835,150.59,150.54,2.4577]
[1718165565922,33.7019,150.6,150.53,2.4579]
[1718165566126,15.4824,150.59,150.48,9.80314321]
[1718165566304,25.41,150.54,150.48,4.9175]
[1718165566499,25.41,150.54,150.46,24.55724321]
[1718165566727,25.41,150.54,150.46,22.1313]
[1718165566940,15.4824,150.59,150.45,165.07754321]
[1718165567117,40.8924,150.59,150.53,2.4579]
[1718165567500,15.4824,150.59,150.5,4.9167]
[1718165567703,15.4824,150.59,150.53,4.9159]
[1718165567940,15.4824,150.59,150.54,4.9156]
[1718165568111,15.4824,150.59,150.57,2.4571]
[1718165568325,15.4824,150.59,150.57,2.4572]
[1718165570614,15.4824,150.59,150.56,2.4573]
[1718165571129,5.835,150.58,150.49,9.80818521]
[1718165571334,25.41,150.57,150.48,31.93668521]
[1718165571538,25.41,150.57,150.51,2.4581]
[1718165572212,31.245,150.57,150.52,2.4581]
[1718165572409,33.7023,150.57,150.5,2.4583]
[1718165572712,33.7023,150.57,150.51,2.4582]
[1718165572713,31.245,150.57,150.51,2.4582]
[1718165574609,5.835,150.56,150.5,0.17]
[1718165574821,5.835,150.56,150.5,2.4583]
[1718165575022,5.835,150.56,150.49,5.257]
[1718165575319,5.835,150.56,150.53,2.4579]
[1718165575919,25.41,150.58,150.53,2.4579]
[1718165576117,15.4824,150.59,150.46,16.37622859]
[1718165576314,15.4824,150.59,150.52,2.458]
[1718165576315,43.3495,150.59,150.52,2.458]
[1718165576520,43.3495,150.59,150.49,4.9171]
[1718165576521,40.8924,150.59,150.49,7.3757]
[1718165576727,40.8924,150.59,150.53,2.4579]
[1718165576728,15.4824,150.59,150.53,2.4579]
[1718165577241,15.4824,150.59,150.54,2.4578]
[1718165577419,15.4824,150.59,150.53,2.4579]
[1718165578545,5.835,150.58,150.49,2.4585]
[1718165578731,2.4575,150.56,150.49,2.4586]
[1718165578916,27.8673,150.57,150.49,2.4586]
[1718165579110,2.4575,150.56,150.49,2.4586]
[1718165579637,2.4573,150.57,150.5,2.4583]
[1718165579850,2.4573,150.57,150.5,2.4584]
[1718165580148,27.8675,150.56,150.5,2.4584]
[1718165580344,25.41,150.56,150.52,4.9162]
[1718165580637,25.41,150.56,150.48,9.81732859]
[1718165580815,5.835,150.58,150.52,2.458]
[1718165581014,5.835,150.58,150.53,2.4579]
[1718165581214,25.41,150.56,150.47,9.81732859]
[1718165581415,25.41,150.56,150.48,2.4587]
[1718165581416,2.4577,150.55,150.48,2.4587]
[1718165581641,45.35,150.56,150.47,9.81732859]
[1718165581847,2.4579,150.54,150.47,2.4589]
[1718165582029,27.8679,150.54,150.47,2.4589]
[1718165582224,25.41,150.54,150.48,2.4586]
[1718165582638,25.41,150.54,150.49,2.4586]
[1718165583439,25.41,150.54,150.49,2.4585]
[1718165584247,25.41,150.54,150.45,25.18171638]
[1718165584453,25.41,150.54,150.48,2.4587]
[1718165585328,31.245,150.54,150.48,2.4587]
[1718165585545,31.245,150.54,150.49,2.6285]
[1718165586041,31.245,150.54,150.5,2.4584]
[1718165586225,31.245,150.54,150.49,2.4585]
[1718165586429,20.904,150.53,150.48,2.6287]
[1718165586747,20.904,150.53,150.47,2.6289]
[1718165586947,20.904,150.53,150.47,2.4589]
[1718165587120,20.904,150.53,150.48,2.4587]
[1718165588429,20.904,150.53,150.47,2.4588]
[1718165589536,20.904,150.53,150.48,2.4587]
[1718165589854,5.835,150.52,150.48,2.4587]
[1718165590261,5.835,150.5,150.46,2.4591]
[1718165591452,25.41,150.51,150.46,2.4591]
[1718165591756,25.41,150.51,150.47,2.4589]
[1718165592339,25.41,150.51,150.46,2.459]
[1718165592656,25.41,150.51,150.47,2.4589]
[1718165592839,25.41,150.51,150.46,2.459]
[1718165593642,31.245,150.51,150.46,2.459]
[1718165594849,31.245,150.51,150.42,31.95533909]
[1718165594850,5.835,150.5,150.42,9.81823909]
[1718165595047,2.4591,150.47,150.41,9.81823909]
[1718165595351,25.41,150.48,150.42,2.4597]
[1718165595555,15.7229,150.47,150.4,12.47689609]
[1718165595758,15.7229,150.47,150.41,2.4599]
[1718165596538,15.7229,150.47,150.42,2.4597]
[1718165597156,15.7229,150.47,150.41,2.4598]
[1718165597366,15.7229,150.47,150.4,2.658657]
[1718165597556,15.7229,150.47,150.42,2.4597]
[1718165597946,15.7229,150.47,150.41,2.6298]
[1718165599060,21.5579,150.47,150.42,2.4597]
[1718165599571,2.4592,150.46,150.41,0.17]
[1718165599740,21.5579,150.47,150.41,2.4598]
[1718165599935,21.5579,150.47,150.36,2.659368]
[1718165600134,21.5579,150.47,150.41,2.4598]
[1718165600461,21.5579,150.47,150.4,2.46]
[1718165600462,49.4269,150.47,150.4,2.46]
[1718165600758,2.4592,150.46,150.39,2.4601]
[1718165600962,49.4268,150.47,150.4,2.46]
[1718165601161,2.4591,150.46,150.4,2.46]
[1718165601333,46.9679,150.47,150.4,2.46]
[1718165601537,2.4592,150.46,150.39,2.4602]
[1718165602276,25.41,150.44,150.35,4.9218]
[1718165602445,27.8695,150.44,150.37,2.4605]
[1718165602949,27.8695,150.44,150.38,2.4603]
[1718165603262,25.41,150.44,150.38,2.4603]
[1718165604149,5.835,150.43,150.39,2.4602]
[1718165604355,5.835,150.43,150.4,2.46]
[1718165604542,69.3669,150.47,150.4,2.46]
[1718165604741,49.4269,150.47,150.38,0.17]
[1718165605042,46.9679,150.47,150.38,0.68]
[1718165605248,46.9679,150.47,150.44,2.4593]
[1718165605461,15.7229,150.47,150.42,0.17]
[1718165605653,15.7229,150.47,150.44,2.4594]
[1718165606065,15.7229,150.47,150.43,2.4595]
[1718165606372,15.7229,150.47,150.42,3.1396]
[1718165606573,15.7229,150.47,150.43,2.4595]
[1718165606738,15.7229,150.47,150.42,0.68]
[1718165606739,21.5579,150.47,150.42,2.6297]
[1718165607168,21.5579,150.47,150.43,2.4595]
[1718165608048,21.5579,150.47,150.42,2.6297]
[1718165608474,21.5579,150.47,150.43,2.4596]
[1718165608642,46.9679,150.47,150.37,4.9211]
[1718165608849,2.4594,150.45,150.39,2.4602]
[1718165609057,25.41,150.44,150.39,2.4602]
[1718165609250,31.245,150.44,150.39,2.4602]
[1718165609771,31.245,150.44,150.4,2.46]
[1718165609964,5.835,150.44,150.4,2.46]
[1718165610270,41.1329,150.47,150.35,100.0]
[1718165610477,46.9679,150.47,150.42,2.4596]
[1718165610765,46.9679,150.47,150.43,2.4595]
[1718165611579,46.9679,150.47,150.44,2.4593]
[1718165611871,46.9679,150.47,150.43,2.4595]
[1718165613448,41.1329,150.47,150.43,2.4595]
[1718165613867,41.1329,150.47,150.42,2.6296]
[1718165615884,41.1329,150.47,150.43,2.4596]
[1718165616177,15.7229,150.47,150.42,0.17]
[1718165616496,15.7229,150.47,150.42,2.9697]
[1718165617381,15.7229,150.47,150.43,2.4596]
[1718165618456,15.7229,150.47,150.42,0.51]
[1718165618665,33.7042,150.46,150.42,0.17]
[1718165618872,33.7042,150.46,150.41,0.68]
[1718165619180,33.7042,150.46,150.41,3.1399]
[1718165619393,31.245,150.46,150.41,3.1399]
[1718165619587,31.245,150.46,150.42,2.4597]
[1718165619957,33.7041,150.46,150.4,2.46]
[1718165620157,5.835,150.45,150.42,2.4597]
[1718165620356,5.835,150.45,150.41,2.4598]
[1718165620584,25.41,150.46,150.42,2.4597]
[1718165620775,31.245,150.46,150.41,2.4598]
[1718165620977,31.245,150.46,150.4,4.9201]
[1718165621286,31.245,150.46,150.43,2.4595]
[1718165621474,31.245,150.46,150.42,2.4596]
[1718165621785,31.245,150.46,150.41,2.4598]
[1718165622167,5.835,150.45,150.41,2.4598]
[1718165622683,5.835,150.45,150.39,0.17]
[1718165622858,5.835,150.45,150.39,0.68]
[1718165623058,5.835,150.45,150.4,2.46]
[1718165623454,27.8698,150.42,150.36,2.4606]
[1718165623659,5.835,150.41,150.37,2.4605]
[1718165623885,5.835,150.41,150.35,2.4608]
[1718165624082,5.835,150.41,150.36,2.4607]
[1718165624458,5.835,150.41,150.37,2.4605]
[1718165625279,25.41,150.39,150.3,9.82654872]
[1718165625579,31.245,150.39,150.34,2.4609]
[1718165625975,5.835,150.38,150.34,2.4609]
[1718165627466,5.835,150.38,150.34,2.461]
[1718165628172,5.835,150.38,150.33,2.4611]
[1718165628371,31.245,150.39,150.33,2.4611]
[1718165628587,33.7052,150.39,150.33,2.4611]
[1718165628894,31.245,150.39,150.33,2.4611]
[1718165629599,5.835,150.38,150.34,2.461]
[1718165630374,5.835,150.38,150.35,2.4609]
[1718165630882,5.835,150.38,150.34,2.4609]
[1718165632201,15.7464,150.44,150.37,4.921]
[1718165632383,21.5814,150.44,150.41,2.4599]
[1718165632587,21.5814,150.44,150.4,2.46]
[1718165632800,15.7464,150.44,150.39,2.4602]
[1718165632992,5.835,150.43,150.39,2.4602]
[1718165633191,31.245,150.42,150.34,4.922]
[1718165633570,5.835,150.41,150.36,2.4607]
[1718165633775,31.245,150.42,150.33,0.17]
[1718165633998,33.7048,150.42,150.36,2.4607]
[1718165634504,25.41,150.42,150.37,2.4605]
[1718165634673,5.835,150.41,150.37,2.4605]
[1718165635300,31.245,150.39,150.31,9.82654872]
[1718165635479,31.245,150.39,150.33,2.4611]
[1718165635791,5.835,150.38,150.34,2.461]
[1718165636500,5.835,150.38,150.35,2.4609]
[1718165637005,5.835,150.38,150.36,2.4607]
[1718165637507,25.41,150.39,150.35,2.4608]
[1718165639408,25.41,150.39,150.32,7.3841]
[1718165639594,31.245,150.39,150.34,2.4609]
[1718165639794,31.245,150.39,150.35,2.4608]
[1718165641406,25.41,150.39,150.34,9.8443]
[1718165641613,25.41,150.39,150.36,2.6306]
[1718165642516,40.5112,150.41,150.36,2.6306]
[1718165642712,15.1012,150.41,150.37,0.34]
[1718165642898,21.1516,150.45,150.42,2.4597]
[1718165643085,15.3166,150.45,150.43,2.4595]
[1718165643285,15.3166,150.45,150.4,4.9201]
[1718165643483,15.3166,150.45,150.41,0.68]
[1718165643698,15.3166,150.45,150.43,2.4595]
[1718165644591,15.3166,150.45,150.42,2.4597]
[1718165644914,15.3166,150.45,150.43,0.51]
[1718165646586,15.3166,150.45,150.41,2.6299]
[1718165646795,15.3166,150.45,150.4,2.46]
[1718165647000,15.3166,150.45,150.41,0.51]
[1718165648195,21.1516,150.45,150.41,2.9698]
[1718165649520,21.1516,150.45,150.37,9.82278302]
[1718165649521,46.5616,150.45,150.37,9.82278302]
[1718165649704,8.2947,150.43,150.38,0.34]
[1718165650014,8.2947,150.43,150.38,2.8004]
[1718165650519,5.835,150.43,150.39,2.4602]
[1718165651216,5.835,150.43,150.4,2.4601]
[1718165651405,46.5616,150.45,150.38,0.17]
[1718165651611,46.5616,150.45,150.38,5.6008]
[1718165651917,46.5616,150.45,150.4,2.4599]
[1718165652300,49.0208,150.45,150.39,2.4601]
[1718165653415,46.5616,150.45,150.4,2.4601]
[1718165653602,49.0209,150.45,150.39,2.4602]
[1718165654526,46.5616,150.45,150.4,2.4601]
[1718165654987,8.2945,150.44,150.38,2.4603]
[1718165655188,5.835,150.44,150.39,2.4602]
[1718165655591,8.2944,150.44,150.38,2.4603]
[1718165656321,5.835,150.44,150.39,2.4602]
[1718165657121,8.2944,150.44,150.38,2.4603]
[1718165657319,8.2944,150.44,150.39,0.51]
[1718165657519,5.835,150.43,150.39,0.51]
[1718165657721,5.835,150.43,150.37,2.6304]
[1718165658022,8.2946,150.43,150.37,2.6304]
[1718165658199,5.835,150.43,150.38,2.9704]
[1718165658744,8.2946,150.43,150.38,0.51]
[1718165659523,8.2946,150.43,150.38,2.9704]
[1718165660026,5.835,150.43,150.38,2.9704]
[1718165661308,8.2947,150.43,150.37,2.4605]
[1718165662015,2.4598,150.42,150.36,3.1406]
[1718165662215,5.835,150.42,150.37,2.4605]
[1718165663332,5.835,150.42,150.36,0.68]
[1718165663496,5.835,150.42,150.37,2.4605]
[1718165665316,25.41,150.42,150.37,2.4605]
[1718165665618,5.835,150.41,150.36,2.9706]
[1718165666120,5.835,150.41,150.37,2.4605]
[1718165666800,5.835,150.41,150.36,2.9706]
[1718165667397,25.41,150.42,150.37,2.4605]
[1718165667601,5.835,150.41,150.36,0.51]
[1718165667815,5.835,150.41,150.37,2.4605]
[1718165669025,8.49,150.38,150.37,2.4605]
[1718165670621,8.49,150.38,150.37,2.8005]
[1718165670812,8.49,150.38,150.37,2.9705]
[1718165673429,5.835,150.44,150.37,12.9828]
[1718165673636,5.835,150.44,150.4,2.46]
[1718165673931,8.49,150.41,150.4,2.46]
[1718165674106,8.49,150.41,150.4,2.63]
[1718165674623,15.3166,150.45,150.41,2.4599]
[1718165674807,8.49,150.42,150.41,2.4599]
[1718165675003,8.49,150.42,150.41,2.7999]
[1718165675202,8.49,150.42,150.41,2.9699]
[1718165675512,8.49,150.42,150.41,3.1399]
[1718165677937,14.325,150.42,150.33,4.9224]
[1718165678130,8.49,150.36,150.34,4.9221]
[1718165678328,8.49,150.36,150.32,6.5638]
[1718165678329,8.49,150.36,150.35,2.4609]
[1718165679330,8.49,150.38,150.35,7.3825]
[1718165679534,15.3166,150.45,150.34,6.6572]
[1718165679535,8.49,150.37,150.34,6.6572]
[1718165679714,8.49,150.37,150.36,2.4607]
[1718165680438,8.49,150.37,150.36,2.8007]
[1718165680637,33.96,150.4,150.37,2.4605]
[1718165681006,33.96,150.4,150.38,0.17]
[1718165681210,2.4597,150.43,150.38,0.17]
[1718165681211,8.49,150.39,150.38,2.6304]
[1718165682129,8.49,150.39,150.38,0.17]
[1718165682339,8.49,150.39,150.38,2.6304]
[1718165682511,8.49,150.39,150.38,2.9704]
[1718165683428,2.4595,150.44,150.39,2.4602]
[1718165683610,17.7759,150.45,150.4,0.17]
[1718165683811,8.49,150.41,150.38,2.9703]
[1718165684011,2.4594,150.44,150.39,0.34]
[1718165684231,8.49,150.4,150.39,0.34]
[1718165684443,8.49,150.4,150.39,0.51]
[1718165685041,8.49,150.4,150.38,2.4603]
[1718165685242,8.49,150.39,150.37,3.1405]
[1718165685426,8.49,150.38,150.37,3.1405]
[1718165688639,8.49,150.39,150.38,2.4604]
[1718165688840,8.49,150.39,150.38,2.9704]
[1718165690347,17.7759,150.45,150.4,0.17]
[1718165690548,15.3166,150.45,150.4,2.97]
[1718165690854,15.3166,150.45,150.41,0.17]
[1718165691023,8.49,150.42,150.41,0.51]
[1718165695742,8.49,150.42,150.35,4.9216]
[1718165695945,2.4595,150.44,150.35,4.9216]
[1718165696147,8.49,150.36,150.32,6.5856]
[1718165696445,29.7778,150.44,150.32,6.5856]
[1718165696446,2.4598,150.42,150.35,2.4608]
[1718165696648,8.49,150.37,150.35,2.4608]
[1718165697161,8.49,150.37,150.32,6.5856]
[1718165697316,8.49,150.38,150.36,2.4607]
[1718165697523,8.49,150.38,150.37,3.1405]
[1718165698020,2.4595,150.44,150.38,0.17]
[1718165698218,2.4596,150.43,150.37,2.9705]
[1718165698447,8.49,150.38,150.37,2.9705]
[1718165698635,8.49,150.38,150.37,0.68]
[1718165698940,8.49,150.38,150.37,0.51]
[1718165699958,8.49,150.38,150.37,0.68]
[1718165700430,8.49,150.38,150.37,3.1405]
[1718165701337,8.49,150.41,150.4,2.46]
[1718165701651,8.49,150.41,150.4,2.97]
[1718165701955,8.49,150.41,150.4,0.51]
[1718165702328,8.49,150.41,150.4,3.1401]
[1718165703054,8.49,150.41,150.4,0.68]
[1718165703728,8.49,150.41,150.4,0.51]
[1718165703923,8.49,150.41,150.4,0.34]
[1718165704122,8.49,150.41,150.38,2.4604]
[1718165704333,8.49,150.39,150.34,2.4609]
[1718165704544,8.49,150.36,150.35,2.4608]
[1718165704729,8.49,150.38,150.37,2.4605]
[1718165705138,2.4595,150.44,150.37,2.4605]
[1718165705342,8.49,150.39,150.38,2.4604]
[1718165705545,15.3166,150.45,150.4,2.46]
[1718165706030,15.3166,150.45,150.41,0.17]
[1718165706361,8.49,150.42,150.41,0.17]
[1718165706647,8.49,150.42,150.4,0.51]
[1718165706855,15.3166,150.45,150.41,2.4599]
[1718165707151,8.49,150.42,150.41,2.4599]
[1718165707332,15.3166,150.45,150.41,2.6299]
[1718165707548,15.3166,150.45,150.42,0.34]
[1718165707749,8.49,150.43,150.42,0.17]
[1718165707974,8.49,150.43,150.42,0.51]
[1718165709056,8.49,150.47,150.46,2.4591]
[1718165709300,16.4606,150.53,150.46,2.4591]
[1718165709481,16.4606,150.53,150.47,2.6288]
[1718165709666,8.49,150.49,150.47,2.7988]
[1718165709981,8.49,150.48,150.47,0.17]
[1718165710156,8.49,150.48,150.46,0.34]
[1718165710352,2.4583,150.51,150.46,0.34]
[1718165710353,8.49,150.47,150.46,0.51]
[1718165710558,8.49,150.47,150.46,0.68]
[1718165710767,2.4583,150.51,150.46,0.68]
[1718165710965,8.49,150.47,150.46,2.4591]